bitfinex-derivatives/quotes_BTCF0:USTF0_20250905
["timestamp","ask_amount","ask_price","bid_price","bid_amount"]
[1757102892893,0.39598,111400.0,111390.0,0.41554342]
[1757102893100,0.39898,111400.0,111390.0,0.41554342]
[1757102893393,0.39898,111400.0,111390.0,0.01443342]
[1757102893394,1.10312108,111400.0,111390.0,0.01443342]
[1757102893800,1.10012108,111400.0,111390.0,0.341]
[1757102893988,1.10112108,111400.0,111390.0,0.341]
[1757102894500,1.10112108,111400.0,111390.0,0.34]
[1757102894704,1.10112108,111400.0,111390.0,0.31]
[1757102895002,1.10112108,111400.0,111380.0,0.01372]
[1757102895297,0.85012108,111390.0,111380.0,0.04]
[1757102895504,0.39598,111390.0,111380.0,0.33]
[1757102895800,0.39598,111390.0,111380.0,0.40237]
[1757102896003,0.39598,111390.0,111380.0,0.06237]
[1757102896893,0.39598,111390.0,111380.0,0.35237]
[1757102897096,0.02201,111390.0,111380.0,0.06507]
[1757102897298,0.38281,111390.0,111380.0,0.06607]
[1757102897500,0.38281,111390.0,111380.0,0.40607]
[1757102897899,0.38392,111400.0,111390.0,0.03507]
[1757102898192,0.38382,111400.0,111390.0,0.35507]
[1757102898397,1.19822,111410.0,111400.0,0.03507]
[1757102898594,1.19812,111410.0,111400.0,0.35507]
[1757102898800,0.38382,111410.0,111400.0,0.35507]
[1757102900703,0.38482,111410.0,111400.0,0.35507]
[1757102901105,0.38682,111410.0,111400.0,0.35507]
[1757102901711,0.38582,111410.0,111400.0,0.35507]
[1757102903604,0.83996108,111410.0,111400.0,0.03507]
[1757102903798,0.03601,111400.0,111380.0,0.0127]
[1757102904109,0.38382,111390.0,111380.0,0.04507]
[1757102904607,0.38382,111390.0,111380.0,0.34507]
[1757102904800,0.38382,111390.0,111380.0,0.59507]
[1757102905004,0.38392,111400.0,111390.0,0.03507]
[1757102905198,0.38382,111400.0,111390.0,0.36507]
[1757102906204,0.38392,111410.0,111400.0,0.03507]
[1757102906406,1.22,111420.0,111410.0,0.03507]
[1757102906608,0.38382,111420.0,111410.0,0.03507]
[1757102907704,0.85095108,111420.0,111400.0,0.0127]
[1757102907907,1.68699108,111410.0,111390.0,0.0127]
[1757102908101,0.39681,111400.0,111390.0,0.03507]
[1757102908297,0.39681,111400.0,111390.0,0.02237]
[1757102909711,0.39681,111400.0,111380.0,0.0127]
[1757102909712,1.10095108,111400.0,111380.0,0.0127]
[1757102909913,0.38382,111390.0,111380.0,0.03507]
[1757102910807,0.38382,111390.0,111380.0,0.36507]
[1757102911414,1.68699108,111390.0,111380.0,0.02237]
[1757102911808,1.68699108,111390.0,111380.0,0.02337]
[1757102912414,1.23285,111390.0,111380.0,0.02337]
[1757102913311,1.19698,111400.0,111380.0,0.63607]
[1757102913513,1.19698,111400.0,111390.0,0.0127]
[1757102913716,1.23289,111400.0,111390.0,0.03507]
[1757102914108,1.23289,111400.0,111390.0,0.20507]
[1757102914817,0.02302,111400.0,111390.0,0.2948377]
[1757102915116,0.02302,111400.0,111390.0,0.34507]
[1757102915310,0.02402,111400.0,111390.0,0.59507]
[1757102915810,0.02402,111400.0,111390.0,0.6848377]
[1757102916011,0.001,111400.0,111390.0,0.6848377]
[1757102916211,0.001,111400.0,111390.0,0.59507]
[1757102916513,0.001,111400.0,111390.0,0.30507]
[1757102916721,0.001,111400.0,111390.0,0.03507]
[1757102916722,0.02402,111400.0,111390.0,0.03507]
[1757102916918,0.03701,111400.0,111390.0,0.03507]
[1757102917415,0.02402,111400.0,111390.0,0.03507]
[1757102917614,0.38482,111400.0,111390.0,0.34507]
[1757102917814,0.38382,111400.0,111390.0,0.34607]
[1757102918524,0.38482,111400.0,111390.0,0.34507]
[1757102918819,0.38482,111400.0,111390.0,0.05507]
[1757102919020,0.38482,111400.0,111390.0,0.03507]
[1757102919424,0.39781,111400.0,111390.0,0.02237]
[1757102919612,0.03601,111390.0,111380.0,0.02237]
[1757102919812,0.85095108,111390.0,111380.0,0.02237]
[1757102920020,0.39681,111390.0,111380.0,0.02237]
[1757102920615,0.85095108,111390.0,111380.0,0.02237]
[1757102920820,0.39681,111390.0,111380.0,0.02237]
[1757102921223,0.39681,111390.0,111380.0,0.02337]
[1757102921915,0.85095108,111390.0,111380.0,0.02337]
[1757102922124,0.85095108,111390.0,111380.0,0.001]
[1757102922421,1.10095108,111390.0,111380.0,0.001]
[1757102922818,0.02302,111360.0,111350.0,0.03507]
[1757102923120,0.02302,111360.0,111350.0,0.39507]
[1757102923917,0.38392,111370.0,111360.0,0.03507]
[1757102924123,0.3608,111370.0,111360.0,0.36507]
[1757102924325,0.3608,111370.0,111360.0,0.40507]
[1757102924517,0.38382,111370.0,111360.0,0.40507]
[1757102924824,0.38382,111370.0,111360.0,0.06507]
[1757102925022,0.38382,111370.0,111360.0,0.34507]
[1757102925220,0.38382,111370.0,111360.0,0.03507]
[1757102925521,0.38382,111370.0,111360.0,0.39507]
[1757102925718,0.38382,111370.0,111360.0,0.36507]
[1757102925916,0.38382,111370.0,111360.0,0.05707]
[1757102926112,0.38382,111370.0,111360.0,0.06007]
[1757102926314,0.38382,111370.0,111360.0,0.04007]
[1757102926516,0.38382,111370.0,111360.0,0.41007]
[1757102927016,0.38382,111370.0,111360.0,0.4998619]
[1757102927216,0.02302,111370.0,111360.0,0.4998619]
[1757102927723,0.02302,111370.0,111360.0,0.1598619]
[1757102928125,0.02302,111370.0,111360.0,1.3159419]
[1757102928618,0.02302,111370.0,111360.0,1.22615]
[1757102930413,0.38209,111380.0,111370.0,0.01308]
[1757102930616,0.38199,111380.0,111370.0,0.25499]
[1757102931720,0.38199,111380.0,111370.0,0.3447738]
[1757102931925,0.37389,111390.0,111380.0,0.03499]
[1757102931926,0.38209,111390.0,111380.0,0.03499]
[1757102932227,0.02119,111390.0,111380.0,0.41499]
[1757102932614,0.38209,111400.0,111390.0,0.03499]
[1757102932818,0.38199,111400.0,111390.0,0.38499]
[1757102933216,0.38199,111400.0,111390.0,0.35499]
[1757102933418,0.38199,111400.0,111390.0,0.41499]
[1757102933622,0.38199,111400.0,111390.0,0.35499]
[1757102933817,0.38199,111400.0,111390.0,0.05499]
[1757102934021,0.38299,111400.0,111390.0,0.05499]
[1757102934725,0.38299,111400.0,111390.0,0.29499]
[1757102934921,0.38299,111400.0,111390.0,0.03499]
[1757102935129,0.38299,111400.0,111390.0,0.36499]
[1757102935624,0.38299,111400.0,111390.0,0.03499]
[1757102935822,0.38299,111400.0,111390.0,0.40499]
[1757102936015,0.38299,111400.0,111390.0,0.33499]
[1757102936221,0.38299,111400.0,111390.0,0.05499]
[1757102936816,0.38199,111400.0,111390.0,0.03499]
[1757102937026,0.38199,111400.0,111390.0,0.05499]
[1757102937322,0.38199,111400.0,111390.0,0.4647577]
[1757102937528,0.38199,111400.0,111390.0,0.03499]
[1757102937725,0.38299,111400.0,111390.0,0.03499]
[1757102939130,0.38299,111400.0,111390.0,0.05499]
[1757102940430,0.38299,111400.0,111390.0,0.03499]
[1757102940622,0.38299,111400.0,111390.0,0.24499]
[1757102947631,0.38299,111400.0,111390.0,0.03499]
[1757102949038,0.38299,111400.0,111390.0,0.34499]
[1757102951435,0.38299,111400.0,111390.0,0.03499]
[1757102951639,0.38299,111400.0,111390.0,0.05499]
[1757102951842,0.38299,111400.0,111390.0,0.40499]
[1757102953843,0.38299,111400.0,111390.0,0.03499]
[1757102954249,0.38299,111400.0,111390.0,0.37499]
[1757102955346,0.38299,111400.0,111390.0,0.16499]
[1757102955646,0.74863185,111400.0,111390.0,0.71063185]
[1757102956846,0.3618,111400.0,111390.0,1.4160415]
[1757102957145,0.3618,111400.0,111390.0,1.05039965]
[1757102957335,0.001,111400.0,111390.0,1.05039965]
[1757102957846,0.001,111400.0,111390.0,1.4160415]
[1757102958147,0.001,111400.0,111390.0,1.05039965]
[1757102958344,0.3609,111410.0,111400.0,0.01302]
[1757102958642,0.38397,111420.0,111410.0,0.03563]
[1757102958848,0.38387,111420.0,111410.0,0.71127185]
[1757102959048,0.38387,111420.0,111410.0,0.80102345]
[1757102960342,0.38387,111420.0,111410.0,0.71127185]
[1757102961050,0.38387,111420.0,111410.0,2.21127185]
[1757102961651,0.02307,111420.0,111410.0,2.21127185]
[1757102961951,0.38397,111430.0,111420.0,0.03563]
[1757102962150,0.38387,111430.0,111420.0,1.9523137]
[1757102962450,0.38387,111430.0,111420.0,1.58667185]
[1757102962843,0.38387,111430.0,111420.0,1.9523137]
[1757102965245,0.38487,111430.0,111420.0,1.9523137]
[1757102967054,0.001,111430.0,111420.0,2.4028573]
[1757102967948,0.001,111430.0,111420.0,2.6528573]
[1757102968144,0.36103462,111440.0,111430.0,0.03563]
[1757102968349,0.36093462,111440.0,111430.0,0.72127185]
[1757102968551,0.38400462,111440.0,111430.0,0.72127185]
[1757102969548,0.38400462,111440.0,111430.0,0.35563]
[1757102969749,0.38400462,111440.0,111430.0,0.72127185]
[1757102971956,0.38500462,111440.0,111430.0,0.72127185]
[1757102972553,1.11628832,111440.0,111430.0,0.03563]
[1757102972757,1.12938832,111440.0,111430.0,0.87063]
[1757102972951,0.76374647,111440.0,111430.0,0.87063]
[1757102973154,0.76374647,111440.0,111430.0,1.23627185]
[1757102973857,1.01374647,111440.0,111430.0,1.23627185]
[1757102974060,1.37938832,111440.0,111430.0,1.23063]
[1757102974357,1.01374647,111440.0,111430.0,0.87063]
[1757102974558,1.01374647,111440.0,111430.0,1.57627185]
[1757102974959,1.37938832,111440.0,111430.0,1.21063]
[1757102975160,1.01374647,111440.0,111430.0,1.57627185]
[1757102976058,1.37938832,111440.0,111430.0,1.21063]
[1757102976959,1.37938832,111440.0,111430.0,0.02261]
[1757102979265,1.12938832,111440.0,111430.0,0.02261]
[1757102979865,1.96414832,111440.0,111430.0,0.02261]
[1757102982864,0.02307,111420.0,111410.0,1.51315462]
[1757102983055,1.1151537,111420.0,111410.0,1.85315462]
[1757102983767,1.1286637,111420.0,111410.0,1.85315462]
[1757102983968,1.1286637,111420.0,111410.0,1.85415462]
[1757102984468,0.74951185,111420.0,111410.0,2.21979647]
[1757102984864,0.02317,111430.0,111420.0,0.02261]
[1757102985169,0.02307,111430.0,111420.0,1.9815537]
[1757102985464,0.38387,111430.0,111420.0,1.61591185]
[1757102985668,0.74951185,111430.0,111420.0,1.61591185]
[1757102986470,0.74951185,111430.0,111420.0,1.25027]
[1757102986670,0.74951185,111430.0,111420.0,1.61591185]
[1757102986965,0.38387,111430.0,111420.0,2.2315537]
[1757102987166,0.00023462,111440.0,111430.0,0.1237154]
[1757102987368,0.00013462,111440.0,111430.0,1.8457991]
[1757102987671,0.3609,111460.0,111430.0,1.8457991]
[1757102987672,0.0001,111460.0,111450.0,0.1236993]
[1757102987971,0.38804185,111470.0,111460.0,0.03398]
[1757102988173,0.38794185,111470.0,111460.0,0.37398]
[1757102988375,0.38794185,111470.0,111460.0,0.73962185]
[1757102988868,0.38794185,111470.0,111460.0,0.39962185]
[1757102989068,0.40145185,111470.0,111460.0,0.09398]
[1757102989274,0.76225185,111470.0,111460.0,0.92846]
[1757102989572,0.3831,111470.0,111460.0,1.22846]
[1757102989772,0.3831,111470.0,111460.0,0.39398]
[1757102989974,0.3841,111470.0,111460.0,0.03398]
[1757102990175,0.3841,111470.0,111460.0,0.41398]
[1757102990469,0.3851,111470.0,111460.0,0.87049482]
[1757102990670,0.3628,111470.0,111460.0,0.87049482]
[1757102990871,0.3628,111470.0,111460.0,1.12049482]
[1757102991070,0.3638,111470.0,111460.0,1.12049482]
[1757102991271,0.3609,111480.0,111470.0,0.1236833]
[1757102991464,0.02618234,111480.0,111470.0,2.12535812]
[1757102991676,0.0001,111490.0,111480.0,0.1236753]
[1757102991862,0.3609,111500.0,111490.0,0.03398]
[1757102992070,0.02593296,111500.0,111490.0,1.22834]
[1757102992377,0.38673296,111500.0,111490.0,1.22834]
[1757102992871,0.38673296,111500.0,111490.0,1.32485482]
[1757102993076,0.38673296,111500.0,111490.0,1.45485482]
[1757102993378,0.02593296,111500.0,111490.0,1.94485482]
[1757102993568,0.02593296,111500.0,111490.0,2.03454202]
[1757102993768,0.02593296,111500.0,111490.0,1.94485482]
[1757102994275,0.04823296,111500.0,111490.0,0.94822]
[1757102995372,0.40903296,111500.0,111490.0,0.94822]
[1757102995571,0.01368,111490.0,111480.0,0.02149462]
[1757102995775,0.87922778,111490.0,111480.0,0.03149462]
[1757102995979,1.12922778,111490.0,111480.0,0.03149462]
[1757102996878,0.67271296,111490.0,111480.0,0.04411462]
[1757102997067,0.41003296,111490.0,111480.0,0.06411462]
[1757102997270,0.41003296,111490.0,111480.0,0.07411462]
[1757102997580,0.38773296,111490.0,111480.0,0.37411462]
[1757102997873,0.02693296,111490.0,111480.0,0.83062944]
[1757102998176,0.02693296,111490.0,111480.0,1.19142944]
[1757102998578,0.02793296,111490.0,111480.0,1.19142944]
[1757102999370,0.02693296,111490.0,111480.0,1.19142944]
[1757102999571,0.001,111490.0,111480.0,1.19142944]
[1757103000273,0.3609,111500.0,111480.0,1.19242944]
[1757103000480,0.3609,111500.0,111490.0,0.49049482]
[1757103000680,0.3608,111500.0,111490.0,0.51049482]
[1757103000872,0.3608,111500.0,111490.0,1.34441482]
[1757103001779,0.3608,111500.0,111490.0,1.32437482]
[1757103002080,0.3608,111500.0,111490.0,1.90437482]
[1757103002282,0.3609,111510.0,111500.0,0.03398]
[1757103002583,0.3608,111520.0,111510.0,0.03398]
[1757103002584,0.3609,111520.0,111510.0,0.03398]
[1757103002773,0.3609,111520.0,111510.0,0.35398]
[1757103002774,0.3608,111520.0,111510.0,0.35398]
[1757103002971,0.3608,111520.0,111510.0,0.05398]
[1757103003174,0.3608,111520.0,111510.0,0.38398]
[1757103003383,0.3608,111520.0,111510.0,0.05398]
[1757103003781,0.3608,111520.0,111510.0,0.37398]
[1757103004283,0.3608,111520.0,111510.0,0.03398]
[1757103004476,0.3608,111520.0,111510.0,0.05398]
[1757103004877,0.3638,111520.0,111510.0,0.05398]
[1757103005077,0.3658,111520.0,111510.0,0.05398]
[1757103005474,0.3658,111520.0,111510.0,0.03398]
[1757103005977,0.3881,111520.0,111510.0,0.03398]
[1757103006184,0.65187,111520.0,111510.0,0.03398]
[1757103006787,0.65187,111520.0,111510.0,0.02136]
[1757103007379,0.65187,111520.0,111500.0,0.03411462]
[1757103007380,0.01377,111510.0,111500.0,0.03411462]
[1757103007578,0.39687,111510.0,111500.0,0.02149462]
[1757103007784,1.93347539,111510.0,111500.0,0.00013462]
[1757103008588,1.93447539,111510.0,111500.0,0.00013462]
[1757103008790,1.93547539,111510.0,111500.0,0.00013462]
[1757103009692,1.93547539,111510.0,111460.0,0.10612734]
[1757103009693,0.0223,111470.0,111460.0,0.10612734]
[1757103009991,0.0223,111470.0,111460.0,0.34398]
[1757103011089,0.3833,111480.0,111470.0,0.01262]
[1757103011294,0.3831,111480.0,111470.0,0.07398]
[1757103012386,0.39879,111480.0,111470.0,0.06136]
[1757103012687,0.0223,111460.0,111450.0,0.03398]
[1757103012893,0.3831,111460.0,111450.0,0.36398]
[1757103014586,0.3831,111460.0,111450.0,0.36498]
[1757103015989,0.3851,111460.0,111450.0,0.36398]
[1757103020089,0.3841,111460.0,111450.0,0.36398]
[1757103020491,0.3831,111460.0,111450.0,0.36398]
[1757103022394,0.3841,111460.0,111450.0,0.36398]
[1757103023093,0.3831,111460.0,111450.0,0.36398]
[1757103028098,0.38189,111460.0,111450.0,0.36602]
[1757103031497,0.3608,111460.0,111450.0,0.33]
[1757103031698,0.38189,111460.0,111450.0,0.36602]
[1757103033499,0.38189,111460.0,111450.0,0.73126216]
[1757103034795,1.37130216,111460.0,111450.0,0.13276]
[1757103035096,1.37130216,111460.0,111450.0,0.02276]
[1757103036096,1.37230216,111460.0,111450.0,0.02276]
[1757103036897,1.37330216,111460.0,111450.0,0.02276]
[1757103039298,1.12330216,111460.0,111450.0,0.02276]
[1757103045408,1.12330216,111460.0,111450.0,0.22276]
[1757103060316,1.57721,111460.0,111450.0,0.85104216]
[1757103060614,0.02309,111460.0,111450.0,0.85104216]
[1757103060911,0.002,111460.0,111450.0,1.30600372]
[1757103061118,0.002,111460.0,111450.0,2.49924372]
[1757103061413,0.002,111460.0,111450.0,2.13400156]
[1757103061819,0.001,111460.0,111450.0,2.13400156]
[1757103062012,0.38216,111470.0,111460.0,0.01304]
[1757103062209,0.38196,111470.0,111460.0,0.73070216]
[1757103063312,0.38196,111470.0,111460.0,0.36546]
[1757103063915,0.38196,111470.0,111460.0,0.05546]
[1757103064109,0.38196,111470.0,111460.0,0.34546]
[1757103066520,0.38196,111470.0,111460.0,0.71070216]
[1757103066828,0.02116,111470.0,111460.0,0.71070216]
[1757103067426,0.02116,111470.0,111460.0,1.0757722]
[1757103068813,0.02116,111470.0,111460.0,0.7106161]
[1757103070620,0.02116,111470.0,111460.0,0.71957083]
[1757103070923,0.02116,111470.0,111460.0,0.7106161]
[1757103071120,0.38216,111480.0,111470.0,0.03546]
[1757103071321,0.38196,111480.0,111470.0,0.7706161]
[1757103071721,0.7471161,111480.0,111470.0,0.7706161]
[1757103071917,0.38196,111480.0,111470.0,0.7706161]
[1757103073224,0.7471161,111480.0,111470.0,0.4006161]
[1757103073425,1.1270922,111480.0,111470.0,0.02242]
[1757103073727,1.1270922,111480.0,111450.0,0.4343]
[1757103073728,0.03498,111460.0,111450.0,0.4343]
[1757103073929,0.7609361,111460.0,111450.0,0.15546]
[1757103074121,0.7609361,111460.0,111450.0,0.39546]
[1757103074330,0.7609361,111460.0,111450.0,0.19546]
[1757103074629,1.1260922,111460.0,111450.0,0.19546]
[1757103074923,0.75658,111460.0,111450.0,0.18242]
[1757103075127,1.4868922,111460.0,111450.0,0.16]
[1757103076429,1.4868922,111460.0,111450.0,0.161]
[1757103076822,1.4868922,111460.0,111450.0,0.18342]
[1757103077431,1.4878922,111460.0,111450.0,0.18342]
[1757103078122,1.4888922,111460.0,111450.0,0.18342]
[1757103079030,1.4888922,111460.0,111450.0,0.37342]
[1757103079233,1.4888922,111460.0,111450.0,0.351]
[1757103079528,1.4888922,111460.0,111450.0,0.37275]
[1757103082131,1.4888922,111460.0,111450.0,0.001]
[1757103082326,2.1040483,111460.0,111450.0,0.001]
[1757103082526,1.7388922,111460.0,111450.0,0.001]
[1757103083029,1.7388922,111460.0,111450.0,0.351]
[1757103083232,1.7388922,111460.0,111450.0,0.001]
[1757103090440,1.7388922,111460.0,111450.0,0.171]
[1757103096444,1.4888922,111460.0,111450.0,0.35275]
[1757103096645,2.3204122,111460.0,111450.0,0.35275]
[1757103096847,0.74476,111460.0,111450.0,1.0704655]
[1757103097735,0.7236,111460.0,111450.0,1.4356216]
[1757103097944,0.3618,111460.0,111450.0,1.4356216]
[1757103098342,0.001,111460.0,111450.0,1.7964216]
[1757103098549,0.001,111460.0,111450.0,1.0704655]
[1757103099046,0.001,111460.0,111450.0,1.4356216]
[1757103099245,0.361,111470.0,111460.0,0.01284]
[1757103099544,0.3608,111470.0,111460.0,1.0949022]
[1757103099744,0.3608,111470.0,111460.0,1.3449022]
[1757103100447,0.3618,111470.0,111460.0,1.3449022]
[1757103100747,0.3628,111470.0,111460.0,1.3449022]
[1757103100948,0.38501,111470.0,111460.0,0.9797461]
[1757103101546,0.38501,111470.0,111460.0,1.8111461]
[1757103101745,0.02421,111470.0,111460.0,1.8111461]
[1757103102244,0.38501,111470.0,111460.0,1.3449022]
[1757103102446,0.38501,111470.0,111460.0,0.61459]
[1757103102639,0.38501,111470.0,111460.0,1.3449022]
[1757103104442,0.002,111470.0,111460.0,1.4346135]
[1757103108351,0.002,111470.0,111460.0,1.7954135]
[1757103112347,0.002,111470.0,111460.0,1.0651013]
[1757103112553,0.002,111470.0,111460.0,1.7954135]
[1757103114954,0.002,111470.0,111460.0,1.0651013]
[1757103115154,0.002,111470.0,111460.0,1.7954135]
[1757103118758,0.001,111470.0,111460.0,1.7964135]
[1757103119769,0.02273,111480.0,111470.0,0.1255232]
[1757103119970,0.02253,111480.0,111470.0,1.6914393]
[1757103120265,0.7261561,111490.0,111480.0,0.0896952]
[1757103120463,0.38333,111490.0,111480.0,1.1958274]
[1757103120764,0.38333,111490.0,111480.0,0.8306713]
[1757103121071,0.38333,111490.0,111480.0,0.90078269]
[1757103121364,0.38333,111490.0,111480.0,1.26593879]
[1757103121365,0.3608,111490.0,111480.0,1.26593879]
[1757103121669,0.38353,111500.0,111490.0,0.03582]
[1757103121871,0.38333,111500.0,111490.0,1.6016561]
[1757103126972,0.38333,111500.0,111490.0,1.61058791]
[1757103127173,0.38333,111500.0,111490.0,1.6016561]
[1757103127473,0.38333,111500.0,111490.0,1.60146009]
[1757103130268,0.38333,111500.0,111490.0,0.77078009]
[1757103130473,0.38333,111500.0,111490.0,1.55114009]
[1757103130775,0.38333,111500.0,111490.0,1.61114009]
[1757103131475,0.38333,111500.0,111490.0,0.88618]
[1757103132476,0.38333,111500.0,111490.0,1.25114009]
[1757103132673,0.38333,111500.0,111490.0,0.61078009]
[1757103132978,0.38333,111500.0,111490.0,1.44106009]
[1757103135781,0.38333,111500.0,111490.0,1.0761]
[1757103137481,0.38333,111500.0,111490.0,0.24582]
[1757103137683,0.38333,111500.0,111490.0,1.07598]
[1757103141282,0.38333,111500.0,111490.0,1.44094009]
[1757103142884,0.38333,111500.0,111490.0,2.94094009]
[1757103147288,1.03718322,111500.0,111490.0,2.35297]
[1757103147584,1.03718322,111500.0,111490.0,1.52309]
[1757103147887,0.03484,111490.0,111480.0,0.93394139]
[1757103148183,0.76060009,111490.0,111480.0,0.86383]
[1757103148386,1.01060009,111490.0,111480.0,1.5313]
[1757103148682,1.03618625,111490.0,111480.0,1.5]
[1757103148880,1.03618625,111490.0,111480.0,1.85]
[1757103149282,1.03618625,111490.0,111480.0,1.84]
[1757103149683,1.03618625,111490.0,111480.0,1.8527]
[1757103149885,0.67122616,111490.0,111480.0,1.8527]
[1757103150087,0.67222616,111490.0,111480.0,1.8527]
[1757103150282,0.45483418,111490.0,111480.0,1.8527]
[1757103150689,0.48041511,111490.0,111480.0,1.8527]
[1757103150986,0.48141511,111490.0,111480.0,1.8527]
[1757103151186,0.8596852,111490.0,111480.0,1.84]
[1757103152288,0.8596852,111490.0,111480.0,1.8527]
[1757103153091,1.6894052,111490.0,111480.0,1.8527]
[1757103153583,0.8596852,111490.0,111480.0,1.8527]
[1757103154292,0.83410427,111490.0,111480.0,1.8527]
[1757103156294,0.8596756,111490.0,111480.0,1.8527]
[1757103157096,0.83410427,111490.0,111480.0,1.8527]
[1757103158288,0.38433,111490.0,111480.0,1.8527]
[1757103158491,0.02353,111490.0,111480.0,2.30735529]
[1757103158888,0.002,111490.0,111480.0,2.55735529]
[1757103159396,0.002,111490.0,111480.0,2.30735529]
[1757103159795,0.001,111490.0,111480.0,2.30735529]
[1757103160602,0.38253,111500.0,111490.0,0.0213]
[1757103160798,0.38233,111500.0,111490.0,1.2436]
[1757103165493,0.74729009,111500.0,111490.0,1.2436]
[1757103165793,0.74729009,111500.0,111490.0,0.414]
[1757103165998,0.76083009,111500.0,111490.0,1.0507]
[1757103166398,0.76083009,111500.0,111490.0,1.06342]
[1757103166997,0.76283009,111500.0,111490.0,1.06342]
[1757103167793,0.76283009,111500.0,111490.0,0.23402]
[1757103171302,0.74929009,111500.0,111490.0,0.23402]
[1757103182313,0.38433,111500.0,111490.0,0.23402]
[1757103183307,0.74929009,111500.0,111490.0,0.23402]
[1757103189617,0.01354,111490.0,111480.0,1.5127]
[1757103189825,0.73940376,111490.0,111480.0,1.8227]
[1757103190725,0.73940376,111490.0,111480.0,1.8427]
[1757103192427,0.37434,111490.0,111480.0,1.8427]
[1757103192628,0.72586376,111490.0,111480.0,2.20776376]
[1757103198233,0.3608,111490.0,111480.0,2.20776376]
[1757103198428,0.3608,111490.0,111480.0,2.66252272]
[1757103199134,0.3608,111490.0,111480.0,2.57282752]
[1757103199725,0.72606376,111500.0,111490.0,0.03486]
[1757103199927,0.74844376,111500.0,111490.0,1.58836376]
[1757103203536,0.74944376,111500.0,111490.0,1.58836376]
[1757103203737,0.75044376,111500.0,111490.0,1.58836376]
[1757103204236,0.75044376,111500.0,111490.0,1.2233]
[1757103204437,0.75044376,111500.0,111490.0,1.58836376]
[1757103205739,0.75044376,111500.0,111490.0,1.2233]
[1757103205935,1.12914752,111500.0,111490.0,1.58836376]
[1757103206141,1.12914752,111500.0,111490.0,0.75992376]
[1757103206436,1.12914752,111500.0,111490.0,0.39486]
[1757103209035,0.39902,111500.0,111490.0,0.39486]
[1757103209242,1.12914752,111500.0,111490.0,0.39486]
[1757103213344,0.76408376,111500.0,111490.0,0.75992376]
[1757103214347,0.75044376,111500.0,111490.0,0.75992376]
[1757103215350,0.75044376,111500.0,111490.0,0.59992376]
[1757103215639,0.76408376,111500.0,111490.0,0.59992376]
[1757103215844,1.12914752,111500.0,111490.0,0.23486]
[1757103216753,0.76408376,111500.0,111490.0,0.23486]
[1757103217439,0.76408376,111500.0,111490.0,0.59992376]
[1757103219640,1.12914752,111500.0,111490.0,0.02211]
[1757103219941,1.37914752,111500.0,111490.0,0.22211]
[1757103220146,2.20690752,111500.0,111490.0,0.28211]
[1757103222653,1.47678,111500.0,111490.0,0.28211]
[1757103222952,2.20690752,111500.0,111490.0,0.28211]
[1757103227254,2.20690752,111500.0,111490.0,0.29608]
[1757103227856,1.84184376,111500.0,111490.0,0.66114376]
[1757103231256,1.47678,111500.0,111490.0,0.66114376]
[1757103231555,1.84184376,111500.0,111490.0,0.66114376]
[1757103233250,1.84184376,111500.0,111490.0,0.29608]
[1757103233452,1.84184376,111500.0,111490.0,0.66114376]
[1757103234160,2.20690752,111500.0,111490.0,0.28211]
[1757103241565,2.20690752,111500.0,111490.0,0.26]
[1757103241866,0.03482,111490.0,111480.0,0.38673376]
[1757103242066,0.76068376,111490.0,111480.0,0.72070376]
[1757103244970,0.76068376,111490.0,111480.0,0.35564]
[1757103245169,0.76268376,111490.0,111480.0,0.72070376]
[1757103251377,0.01354,111480.0,111460.0,2.33992]
[1757103251579,0.40023716,111480.0,111470.0,0.02167]
[1757103251780,0.76083716,111480.0,111470.0,0.37167]
[1757103252871,1.58755716,111480.0,111470.0,0.37167]
[1757103256784,1.58755716,111480.0,111470.0,0.38504]
[1757103257184,1.2088,111480.0,111470.0,0.38504]
[1757103258087,1.2098,111480.0,111470.0,0.38504]
[1757103258585,0.38308,111480.0,111470.0,0.38504]
[1757103258786,0.38408,111480.0,111470.0,0.38504]
[1757103259684,0.38308,111480.0,111470.0,0.38504]
[1757103259887,0.38208,111480.0,111470.0,0.38504]
[1757103260385,0.38308,111480.0,111470.0,0.38504]
[1757103260585,0.38408,111480.0,111470.0,0.38504]
[1757103266492,0.74929716,111480.0,111470.0,0.38504]
[1757103266888,0.76223716,111480.0,111470.0,0.38504]
[1757103270295,0.74929716,111480.0,111470.0,0.38504]
[1757103270894,0.38408,111480.0,111470.0,0.38504]
[1757103274296,0.74929716,111480.0,111470.0,0.38504]
[1757103277696,0.74929716,111480.0,111470.0,0.37167]
[1757103277697,0.76223716,111480.0,111470.0,0.37167]
[1757103278001,0.76223716,111480.0,111470.0,0.38504]
[1757103281404,0.38408,111480.0,111470.0,0.38504]
[1757103281606,0.76223716,111480.0,111470.0,0.38504]
[1757103282609,0.76223716,111480.0,111470.0,0.37167]
[1757103283205,0.76223716,111480.0,111470.0,0.38504]
[1757103284605,0.39702,111480.0,111470.0,0.38504]
[1757103284802,0.74929716,111480.0,111470.0,0.38504]
[1757103286508,0.38408,111480.0,111470.0,0.38504]
[1757103287209,0.74929716,111480.0,111470.0,0.38504]
[1757103287507,0.74729716,111480.0,111470.0,0.38504]
[1757103289111,0.74829716,111480.0,111470.0,0.38504]
[1757103289611,0.74929716,111480.0,111470.0,0.38504]
[1757103291313,0.38408,111480.0,111470.0,0.38504]
[1757103291608,0.74929716,111480.0,111470.0,0.38504]
[1757103295109,0.02328,111480.0,111470.0,1.00025716]
[1757103295302,0.002,111480.0,111470.0,1.00025716]
[1757103295714,0.3628,111480.0,111470.0,1.00025716]
[1757103296413,0.3618,111480.0,111470.0,1.00025716]
[1757103296614,0.3608,111480.0,111470.0,1.00025716]
[1757103296813,0.3608,111480.0,111470.0,1.00125716]
[1757103297216,0.3608,111480.0,111470.0,1.09096046]
[1757103298516,0.3608,111480.0,111470.0,1.09196046]
[1757103300115,0.3608,111480.0,111470.0,1.09096046]
[1757103300316,0.3608,111480.0,111470.0,1.08996046]